fUSD/lending_fUSD_20240214
["ID","MTS","AMOUNT","RATE_DAILY","PERIOD"]
[314059863,1707951050085,-500.0,0.00036547,7]
[314059864,1707951050096,-500.0,0.00036547,7]
[314059865,1707951050107,-500.0,0.00036547,7]
[314059866,1707951050118,-500.0,0.00036547,7]
[314059867,1707951050135,-500.0,0.00036547,7]
[314059868,1707951050147,-594.05,0.00036547,7]
[314059869,1707951050159,-262.79408498,0.00036613,8]
[314059870,1707951050171,-632.46138,0.0003662,2]
[314059871,1707951050183,-20339.11071421,0.00036709,2]
[314059872,1707951050195,-584.42212394,0.00036711,7]
[314059873,1707951050206,-500.0,0.00036712,7]
[314059874,1707951050218,-500.0,0.00036712,7]
[314059875,1707951050229,-500.0,0.00036712,7]
[314059876,1707951050240,-500.0,0.00036712,7]
[314059877,1707951050251,-500.0,0.00036712,7]
[314059878,1707951050268,-500.0,0.00036712,7]
[314059879,1707951050279,-500.0,0.00036712,7]
[314059880,1707951050290,-500.0,0.00036712,2]
[314059881,1707951050301,-747.21,0.00036712,7]
[314059882,1707951050312,-436.6,0.00036712,7]
[314059883,1707951050325,-1673.07,0.00036712,7]
[314059884,1707951050337,-500.0,0.00036712,7]
[314059885,1707951050349,-1335.52,0.00036712,7]
[314059886,1707951050360,-500.0,0.00036712,7]
[314059887,1707951050371,-500.0,0.00036712,7]
[314059888,1707951050382,-559.16,0.00036712,7]
[314059889,1707951050393,-500.0,0.00036712,7]
[314059890,1707951050404,-500.0,0.00036712,7]
[314059891,1707951050415,-500.0,0.00036712,7]
[314059892,1707951050427,-500.0,0.00036712,7]
[314059893,1707951050438,-500.0,0.00036712,7]
[314059894,1707951050450,-871.35,0.00036712,7]
[314059895,1707951050461,-500.0,0.00036712,7]
[314059896,1707951050472,-500.0,0.00036712,7]
[314059897,1707951050483,-555.47,0.00036712,7]
[314059898,1707951050494,-500.0,0.00036712,7]
[314059899,1707951050505,-500.0,0.00036712,7]
[314059900,1707951050515,-767.26,0.00036712,7]
[314059901,1707951050525,-594.9,0.00036712,7]
[314059902,1707951050536,-500.0,0.00036712,7]
[314059903,1707951050546,-500.0,0.00036712,7]
[314059904,1707951050557,-519.31,0.00036712,7]
[314059905,1707951050566,-500.0,0.00036712,7]
[314059906,1707951050576,-500.0,0.00036712,7]
[314059907,1707951050587,-500.0,0.00036712,7]
[314059908,1707951050597,-500.0,0.00036712,7]
[314059909,1707951050607,-1003.85,0.00036712,7]
[314059910,1707951050618,-717.51,0.00036712,7]
[314059911,1707951050628,-500.0,0.00036712,7]
[314059912,1707951050639,-525.8,0.00036712,7]
[314059913,1707951050652,-500.0,0.00036712,7]
[314059914,1707951050665,-500.0,0.00036712,7]
[314059915,1707951050676,-500.0,0.00036712,7]
[314059916,1707951050688,-1857.9,0.00036712,7]
[314059917,1707951050701,-500.0,0.00036712,7]
[314059918,1707951050712,-609.15,0.00036712,7]
[314059919,1707951050722,-500.0,0.00036712,7]
[314059920,1707951050732,-624.49,0.00036712,7]
[314059921,1707951050745,-983.56,0.00036712,7]
[314059922,1707951050755,-769.09,0.00036712,7]
[314059923,1707951050766,-500.0,0.00036712,7]
[314059924,1707951050777,-829.58,0.00036712,7]
[314059925,1707951050789,-500.0,0.00036712,7]
[314059926,1707951050800,-578.43,0.00036712,7]
[314059927,1707951050812,-640.96800005,0.00036712,7]
[314059928,1707951050823,-500.0,0.00036712,7]
[314059929,1707951050834,-500.0,0.00036712,7]
[314059930,1707951050846,-194.65,0.00036712,7]
[314059931,1707951050858,-200.0,0.00036745,7]
[314059932,1707951050869,-1123.5105579,0.00036815,2]
[314059933,1707951050879,-172.32,0.00036821,7]
[314059934,1707951050889,-500.0,0.00036821,7]
[314059935,1707951050900,-500.0,0.00036821,7]
[314059936,1707951050910,-500.0,0.00036821,7]
[314059937,1707951050920,-500.0,0.00036821,7]
[314059938,1707951050930,-500.0,0.00036821,7]
[314059939,1707951050941,-500.0,0.00036821,7]
[314059940,1707951050952,-160.41910281,0.00036821,7]
[314059941,1707951050962,-500.0,0.00036821,7]
[314059942,1707951050973,-500.0,0.00036821,7]
[314059943,1707951050983,-500.0,0.00036821,7]
[314059944,1707951050993,-267.39754704,0.00036821,7]
[314059945,1707951051004,-500.0,0.00036821,7]
[314059946,1707951051014,-498.96055439,0.00036821,7]
[314059947,1707951051024,-500.0,0.00036821,7]
[314059948,1707951051033,-500.0,0.00036821,7]
[314059949,1707951051043,-628.45,0.00036821,7]
[314059950,1707951051054,-500.0,0.00036821,7]
[314059951,1707951051098,-500.0,0.00036821,7]
[314059952,1707951051110,-500.0,0.00036821,7]
[314059953,1707951051120,-500.0,0.00036821,7]
[314059954,1707951051130,-500.0,0.00036821,7]
[314059955,1707951051140,-500.0,0.00036821,7]
[314059956,1707951051149,-690.47,0.00036821,7]
[314059957,1707951051159,-500.0,0.00036821,7]
[314059958,1707951051168,-575.37,0.00036821,7]
[314059959,1707951051178,-697.55,0.00036821,7]
[314059960,1707951051187,-500.0,0.00036821,7]
[314059961,1707951051197,-500.0,0.00036821,7]
[314059962,1707951051207,-500.71748539,0.00036821,7]
[314059963,1707951051217,-440.47193737,0.00036821,7]
[314059964,1707951051227,-500.0,0.00036821,7]
[314059965,1707951051237,-500.0,0.00036821,7]
[314059966,1707951051247,-500.0,0.00036821,7]
[314059967,1707951051257,-500.0,0.00036821,7]
[314059968,1707951051268,-500.0,0.00036821,7]
[314059969,1707951051278,-500.0,0.00036821,7]
[314059970,1707951051288,-500.0,0.00036821,7]
[314059971,1707951051298,-500.0,0.00036821,7]
[314059972,1707951051309,-293.36441653,0.00036821,7]
[314059973,1707951051318,-500.0,0.00036821,7]
[314059974,1707951051328,-159.13176903,0.00036821,7]
[314059975,1707951051338,-500.0,0.00036821,7]
[314059976,1707951051349,-500.0,0.00036821,7]
[314059977,1707951051358,-500.0,0.00036821,7]
[314059978,1707951051368,-594.05,0.00036821,7]
[314059979,1707951051377,-1273.2751032,0.00036864,2]
[314059980,1707951051387,-683.46762909,0.000369,2]
[314059981,1707951051396,-537.45080432,0.000369,2]
[314059982,1707951051406,-10649.95038379,0.000369,2]
[314059983,1707951051416,-270.20812875,0.00036917,2]
[314059984,1707951051425,-171.76,0.00036949,2]
[314059985,1707951051435,-220.0,0.00036956,7]
[314059986,1707951051445,-185.42,0.00036969,2]
[314059987,1707951051455,-161.10780887,0.00036972,2]
[314059988,1707951051464,-500.0,0.00036986,7]
[314059989,1707951051473,-500.0,0.00036986,7]
[314059990,1707951051482,-398.77,0.00036986,7]
[314059991,1707951051492,-437.9,0.00036986,7]
[314059992,1707951051502,-500.0,0.00036986,7]
[314059993,1707951051512,-500.0,0.00036986,7]
[314059994,1707951051521,-500.0,0.00036986,7]
[314059995,1707951051531,-500.0,0.00036986,2]
[314059996,1707951051541,-747.21,0.00036986,7]
[314059997,1707951051550,-1673.07,0.00036986,7]
[314059998,1707951051560,-500.0,0.00036986,7]
[314059999,1707951051570,-1335.52,0.00036986,7]
[314060000,1707951051579,-500.0,0.00036986,7]
[314060001,1707951051589,-500.0,0.00036986,7]
[314060002,1707951051599,-559.16,0.00036986,7]
[314060003,1707951051608,-500.0,0.00036986,7]
[314060004,1707951051618,-164.58144011,0.00036986,7]
[314060005,1707951051627,-500.0,0.00036986,7]
[314060006,1707951051638,-500.0,0.00036986,7]
[314060007,1707951051648,-500.0,0.00036986,7]
[314060008,1707951051662,-871.35,0.00036986,7]
[314060009,1707951051671,-249.21,0.00036986,7]
[314060010,1707951051681,-500.0,0.00036986,7]
[314060011,1707951051690,-555.47,0.00036986,7]
[314060012,1707951051701,-500.0,0.00036986,7]
[314060013,1707951051710,-500.0,0.00036986,7]
[314060014,1707951051719,-767.26,0.00036986,7]
[314060015,1707951051730,-594.9,0.00036986,7]
[314060016,1707951051739,-500.0,0.00036986,7]
[314060017,1707951051751,-500.0,0.00036986,7]
[314060018,1707951051760,-519.31,0.00036986,7]
[314060019,1707951051770,-500.0,0.00036986,7]
[314060020,1707951051780,-201.03,0.00036986,7]
[314060021,1707951051790,-500.0,0.00036986,7]
[314060022,1707951051799,-500.0,0.00036986,7]
[314060023,1707951051810,-1003.85,0.00036986,7]
[314060024,1707951051819,-717.51,0.00036986,7]
[314060025,1707951051829,-500.0,0.00036986,7]
[314060026,1707951051838,-525.8,0.00036986,7]
[314060027,1707951051848,-500.0,0.00036986,7]
[314060028,1707951051859,-442.25,0.00036986,7]
[314060029,1707951051868,-500.0,0.00036986,7]
[314060030,1707951051877,-1857.9,0.00036986,7]
[314060031,1707951051887,-500.0,0.00036986,7]
[314060032,1707951051896,-609.15,0.00036986,7]
[314060033,1707951051906,-500.0,0.00036986,7]
[314060034,1707951051915,-624.49,0.00036986,7]
[314060035,1707951051926,-983.56,0.00036986,7]
[314060036,1707951051935,-769.09,0.00036986,7]
[314060037,1707951051944,-500.0,0.00036986,7]
[314060038,1707951051954,-829.58,0.00036986,7]
[314060039,1707951051963,-500.0,0.00036986,7]
[314060040,1707951051973,-500.0,0.00036986,7]
[314060041,1707951051982,-500.0,0.00036986,7]
[314060042,1707951051991,-3997.01497962,0.00036986,2]
[314060043,1707951052001,-100000.0,0.00037,7]
[314060044,1707951052010,-258.62,0.00037,30]
[314060045,1707951052019,-712.45,0.00037075,2]
[314060046,1707951052028,-414.45,0.00037095,7]
[314060047,1707951052038,-500.0,0.00037095,7]
[314060048,1707951052047,-500.0,0.00037095,7]
[314060049,1707951052056,-500.0,0.00037095,7]
[314060050,1707951052065,-231.83037137,0.00037095,7]
[314060051,1707951052074,-500.0,0.00037095,7]
[314060052,1707951052083,-500.0,0.00037095,7]
[314060053,1707951052093,-500.0,0.00037095,7]
[314060054,1707951052102,-500.0,0.00037095,7]
[314060055,1707951052111,-500.0,0.00037095,7]
[314060056,1707951052120,-509.87764246,0.00037095,7]
[314060057,1707951052129,-500.0,0.00037095,7]
[314060058,1707951052138,-628.45,0.00037095,7]
[314060059,1707951052147,-500.0,0.00037095,7]
[314060060,1707951052156,-500.0,0.00037095,7]
[314060061,1707951052165,-500.0,0.00037095,7]
[314060062,1707951052175,-500.0,0.00037095,7]
[314060063,1707951052184,-500.0,0.00037095,7]
[314060064,1707951052193,-500.0,0.00037095,7]
[314060065,1707951052202,-690.47,0.00037095,7]
[314060066,1707951052211,-500.0,0.00037095,7]
[314060067,1707951052220,-575.37,0.00037095,7]
[314060068,1707951052229,-697.55,0.00037095,7]
[314060069,1707951052239,-500.0,0.00037095,7]
[314060070,1707951052248,-500.0,0.00037095,7]
[314060071,1707951052258,-362.77766535,0.00037095,7]
[314060072,1707951052267,-500.0,0.00037095,7]
[314060073,1707951052277,-500.0,0.00037095,7]
[314060074,1707951052286,-500.0,0.00037095,7]
[314060075,1707951052296,-500.0,0.00037095,7]
[314060076,1707951052305,-500.0,0.00037095,7]
[314060077,1707951052314,-395.43058183,0.00037095,7]
[314060078,1707951052324,-500.0,0.00037095,7]
[314060079,1707951052332,-500.0,0.00037095,7]
[314060080,1707951052343,-500.0,0.00037095,7]
[314060081,1707951052352,-500.0,0.00037095,7]
[314060082,1707951052362,-500.0,0.00037095,7]
[314060083,1707951052370,-594.05,0.00037095,7]
[314060084,1707951052380,-1039.14011331,0.00037122,5]
[314060085,1707951052389,-1068.20790398,0.00037122,5]
[314060086,1707951052399,-270.20812872,0.00037133,2]
[314060087,1707951052408,-515.17,0.00037137,30]
[314060088,1707951052417,-556.2,0.00037164,2]
[314060089,1707951052426,-200.0,0.00037167,3]
[314060090,1707951052436,-151.021521,0.00037198,21]
[314060091,1707951052446,-200.0,0.00037229,8]
[314060092,1707951052455,-800.0,0.00037234,5]
[314060093,1707951052464,-500.0,0.0003726,7]
[314060094,1707951052474,-500.0,0.0003726,7]
[314060095,1707951052483,-500.0,0.0003726,7]
[314060096,1707951052493,-500.0,0.0003726,7]
[314060097,1707951052502,-500.0,0.0003726,7]
[314060098,1707951052511,-500.0,0.0003726,2]
[314060099,1707951052520,-747.21,0.0003726,7]
[314060100,1707951052529,-1673.07,0.0003726,7]
[314060101,1707951052539,-500.0,0.0003726,7]
[314060102,1707951052549,-1335.52,0.0003726,7]
[314060103,1707951052558,-500.0,0.0003726,7]
[314060104,1707951052567,-500.0,0.0003726,7]
[314060105,1707951052576,-559.16,0.0003726,7]
[314060106,1707951052585,-500.0,0.0003726,7]
[314060107,1707951052594,-500.0,0.0003726,7]
[314060108,1707951052604,-500.0,0.0003726,7]
[314060109,1707951052615,-500.0,0.0003726,7]
[314060110,1707951052624,-871.35,0.0003726,7]
[314060111,1707951052634,-500.0,0.0003726,7]
[314060112,1707951052643,-555.47,0.0003726,7]
[314060113,1707951052655,-500.0,0.0003726,7]
[314060114,1707951052665,-500.0,0.0003726,7]
[314060115,1707951052675,-767.26,0.0003726,7]
[314060116,1707951052684,-594.9,0.0003726,7]
[314060117,1707951052695,-500.0,0.0003726,7]
[314060118,1707951052704,-500.0,0.0003726,7]
[314060119,1707951052713,-519.31,0.0003726,7]
[314060120,1707951052723,-500.0,0.0003726,7]
[314060121,1707951052734,-500.0,0.0003726,7]
[314060122,1707951052744,-500.0,0.0003726,7]
[314060123,1707951052753,-1003.85,0.0003726,7]
[314060124,1707951052762,-717.51,0.0003726,7]
[314060125,1707951052771,-500.0,0.0003726,7]
[314060126,1707951052780,-525.8,0.0003726,7]
[314060127,1707951052790,-500.0,0.0003726,7]
[314060128,1707951052799,-571.09,0.0003726,7]
[314060129,1707951052809,-1857.9,0.0003726,7]
[314060130,1707951052819,-500.0,0.0003726,7]
[314060131,1707951052828,-609.15,0.0003726,7]
[314060132,1707951052838,-500.0,0.0003726,7]
[314060133,1707951052847,-624.49,0.0003726,7]
[314060134,1707951052857,-983.56,0.0003726,7]
[314060135,1707951052866,-769.09,0.0003726,7]
[314060136,1707951052876,-177.32052748,0.0003726,7]
[314060137,1707951052885,-829.58,0.0003726,7]
[314060138,1707951052894,-500.0,0.0003726,7]
[314060139,1707951052903,-500.0,0.0003726,7]
[314060140,1707951052913,-500.0,0.0003726,7]
[314060141,1707951052922,-1123.51055791,0.00037295,2]
[314060142,1707951052931,-153.86,0.000373,3]
[314060143,1707951052940,-153.86,0.000373,3]
[314060144,1707951052949,-906.4,0.00037319,2]
[314060145,1707951052958,-262.79408498,0.00037328,8]
[314060146,1707951052966,-270.20812872,0.00037349,2]
[314060147,1707951052975,-556.2,0.00037351,2]
[314060148,1707951052984,-156.15,0.00037369,7]
[314060149,1707951052993,-639.07,0.00037369,7]
[314060150,1707951053003,-500.0,0.00037369,7]
[314060151,1707951053012,-512.5,0.00037369,7]
[314060152,1707951053022,-500.0,0.00037369,7]
[314060153,1707951053031,-500.0,0.00037369,7]
[314060154,1707951053041,-500.0,0.00037369,7]
[314060155,1707951053050,-315.32605043,0.00037369,7]
[314060156,1707951053059,-500.0,0.00037369,7]
[314060157,1707951053068,-628.45,0.00037369,7]
[314060158,1707951053078,-500.0,0.00037369,7]
[314060159,1707951053087,-500.0,0.00037369,7]
[314060160,1707951053097,-500.0,0.00037369,7]
[314060161,1707951053106,-500.0,0.00037369,7]
[314060162,1707951053116,-500.0,0.00037369,7]
[314060163,1707951053125,-500.0,0.00037369,7]
[314060164,1707951053134,-690.47,0.00037369,7]
[314060165,1707951053144,-500.9,0.00037369,7]
[314060166,1707951053153,-575.37,0.00037369,7]
[314060167,1707951053162,-697.55,0.00037369,7]
[314060168,1707951053171,-500.0,0.00037369,7]
[314060169,1707951053180,-500.0,0.00037369,7]
[314060170,1707951053189,-500.0,0.00037369,7]
[314060171,1707951053198,-500.0,0.00037369,7]
[314060172,1707951053208,-500.0,0.00037369,7]
[314060173,1707951053217,-500.0,0.00037369,7]
[314060174,1707951053227,-500.0,0.00037369,7]
[314060175,1707951053237,-500.0,0.00037369,7]
[314060176,1707951053246,-500.0,0.00037369,7]
[314060177,1707951053255,-500.0,0.00037369,7]
[314060178,1707951053265,-500.0,0.00037369,7]
[314060179,1707951053274,-476.7484261,0.00037369,7]
[314060180,1707951053283,-594.05,0.00037369,7]
[314060181,1707951053293,-1273.27510321,0.00037394,2]
[314060182,1707951053302,-800.0,0.00037405,5]
[314060183,1707951053311,-200.0,0.00037405,10]
[314060184,1707951053321,-500.0,0.00037405,10]
[314060185,1707951053330,-151.021521,0.00037498,21]
[314060186,1707951053338,-500.0,0.00037534,7]
[314060187,1707951053348,-388.96049931,0.00037534,7]
[314060188,1707951053357,-500.0,0.00037534,7]
[314060189,1707951053366,-500.0,0.00037534,7]
[314060190,1707951053376,-500.0,0.00037534,7]
[314060191,1707951053385,-274.25205619,0.00037534,2]
[314060192,1707951053394,-747.21,0.00037534,7]
[314060193,1707951053403,-1673.07,0.00037534,7]
[314060194,1707951053413,-500.0,0.00037534,7]
[314060195,1707951053422,-1335.52,0.00037534,7]
[314060196,1707951053431,-500.0,0.00037534,7]
[314060197,1707951053441,-500.0,0.00037534,7]
[314060198,1707951053450,-559.16,0.00037534,7]
[314060199,1707951053459,-236.79,0.00037534,7]
[314060200,1707951053469,-500.0,0.00037534,7]
[314060201,1707951053478,-500.0,0.00037534,7]
[314060202,1707951053487,-500.0,0.00037534,7]
[314060203,1707951053497,-871.35,0.00037534,7]
[314060204,1707951053506,-500.0,0.00037534,7]
[314060205,1707951053515,-555.47,0.00037534,7]
[314060206,1707951053525,-365.27,0.00037534,7]
[314060207,1707951053534,-500.0,0.00037534,7]
[314060208,1707951053543,-767.26,0.00037534,7]
[314060209,1707951053553,-594.9,0.00037534,7]
[314060210,1707951053561,-500.0,0.00037534,7]
[314060211,1707951053571,-500.0,0.00037534,7]
[314060212,1707951053580,-519.31,0.00037534,7]
[314060213,1707951053590,-500.0,0.00037534,7]
[314060214,1707951053600,-500.0,0.00037534,7]
[314060215,1707951053609,-261.85,0.00037534,7]
[314060216,1707951053619,-1003.85,0.00037534,7]
[314060217,1707951053628,-717.51,0.00037534,7]
[314060218,1707951053638,-500.0,0.00037534,7]
[314060219,1707951053647,-525.8,0.00037534,7]
[314060220,1707951053661,-500.0,0.00037534,7]
[314060221,1707951053670,-1857.9,0.00037534,7]
[314060222,1707951053680,-500.0,0.00037534,7]
[314060223,1707951053689,-609.15,0.00037534,7]
[314060224,1707951053700,-500.0,0.00037534,7]
[314060225,1707951053709,-624.49,0.00037534,7]
[314060226,1707951053723,-983.56,0.00037534,7]
[314060227,1707951053733,-769.09,0.00037534,7]
[314060228,1707951053743,-829.58,0.00037534,7]
[314060229,1707951053753,-500.0,0.00037534,7]
[314060230,1707951053762,-500.0,0.00037534,7]
[314060231,1707951053771,-500.0,0.00037534,7]
[314060232,1707951053780,-313.7,0.00037537,2]
[314060233,1707951053790,-556.2,0.00037539,2]
[314060234,1707951053800,-270.20812872,0.00037564,2]
[314060235,1707951053810,-683.46762909,0.00037567,2]
[314060236,1707951053819,-10649.95038379,0.00037567,2]
[314060237,1707951053828,-200.0,0.00037576,3]
[314060238,1707951053837,-800.0,0.00037576,5]
[314060239,1707951053848,-500.0,0.00037576,10]
[314060240,1707951053857,-349.2,0.000376,3]
[314060241,1707951053867,-153.73,0.000376,3]
[314060242,1707951053877,-153.73,0.000376,3]
[314060243,1707951053886,-153.73,0.000376,3]
[314060244,1707951053896,-153.73,0.000376,3]
[314060245,1707951053905,-153.73,0.000376,3]
[314060246,1707951053914,-153.73,0.000376,3]
[314060247,1707951053923,-153.73,0.000376,3]
[314060248,1707951053933,-153.73,0.000376,3]
[314060249,1707951053942,-153.73,0.000376,3]
[314060250,1707951053951,-153.73,0.000376,3]
[314060251,1707951053961,-153.73,0.000376,3]
[314060252,1707951053970,-500.0,0.00037643,7]
[314060253,1707951053980,-500.0,0.00037643,7]
[314060254,1707951053989,-500.0,0.00037643,7]
[314060255,1707951053999,-532.4,0.00037643,7]
[314060256,1707951054008,-500.0,0.00037643,7]
[314060257,1707951054017,-628.45,0.00037643,7]
[314060258,1707951054027,-500.0,0.00037643,7]
[314060259,1707951054036,-500.0,0.00037643,7]
[314060260,1707951054045,-500.0,0.00037643,7]
[314060261,1707951054054,-500.0,0.00037643,7]
[314060262,1707951054064,-500.0,0.00037643,7]
[314060263,1707951054073,-500.0,0.00037643,7]
[314060264,1707951054082,-690.47,0.00037643,7]
[314060265,1707951054091,-575.37,0.00037643,7]
[314060266,1707951054101,-697.55,0.00037643,7]
[314060267,1707951054110,-500.0,0.00037643,7]
[314060268,1707951054119,-500.0,0.00037643,7]
[314060269,1707951054129,-500.0,0.00037643,7]
[314060270,1707951054138,-500.0,0.00037643,7]
[314060271,1707951054147,-500.0,0.00037643,7]
[314060272,1707951054157,-500.0,0.00037643,7]
[314060273,1707951054166,-500.0,0.00037643,7]
[314060274,1707951054176,-500.0,0.00037643,7]
[314060275,1707951054186,-500.0,0.00037643,7]
[314060276,1707951054195,-500.0,0.00037643,7]
[314060277,1707951054205,-561.83858213,0.00037643,7]
[314060278,1707951054215,-594.05,0.00037643,7]
[314060279,1707951054225,-153.54697605,0.0003768,2]
[314060280,1707951054235,-174.6,0.000377,3]
[314060281,1707951054244,-150.0,0.00037705,2]
[314060282,1707951054253,-200.0,0.00037714,9]
[314060283,1707951054262,-556.2,0.00037727,2]
[314060284,1707951054273,-926.33418341,0.00037771,2]
[314060285,1707951054282,-166.76527367,0.00037779,2]
[314060286,1707951054292,-322.44116038,0.00037779,2]
[314060287,1707951054301,-517.0617549,0.00037779,2]
[314060288,1707951054310,-749.49971434,0.00037779,2]
[314060289,1707951054320,-1591.44635776,0.00037779,2]
[314060290,1707951054329,-221.19005641,0.00037779,2]
[314060291,1707951054339,-21679.87707116,0.0003778,11]
[314060292,1707951054349,-162.09516177,0.0003778,11]
[314060293,1707951054358,-270.20812872,0.0003778,2]
[314060294,1707951054367,-161.10780887,0.0003778,2]
[314060295,1707951054377,-168.69667078,0.0003778,2]
[314060296,1707951054387,-151.021521,0.00037798,21]
[314060297,1707951054398,-1006.39547367,0.000378,4]
[314060298,1707951054408,-5250.0,0.000378,30]
[314060299,1707951054417,-637.42,0.00037808,7]
[314060300,1707951054428,-500.0,0.00037808,7]
[314060301,1707951054438,-500.0,0.00037808,7]
[314060302,1707951054448,-500.0,0.00037808,7]
[314060303,1707951054458,-747.21,0.00037808,7]
[314060304,1707951054468,-1673.07,0.00037808,7]
[314060305,1707951054477,-500.0,0.00037808,7]
[314060306,1707951054487,-1335.52,0.00037808,7]
[314060307,1707951054497,-500.0,0.00037808,7]
[314060308,1707951054507,-500.0,0.00037808,7]
[314060309,1707951054517,-559.16,0.00037808,7]
[314060310,1707951054528,-500.0,0.00037808,7]
[314060311,1707951054538,-500.0,0.00037808,7]
[314060312,1707951054548,-500.0,0.00037808,7]
[314060313,1707951054557,-871.35,0.00037808,7]
[314060314,1707951054567,-500.0,0.00037808,7]
[314060315,1707951054578,-555.47,0.00037808,7]
[314060316,1707951054588,-500.0,0.00037808,7]
[314060317,1707951054598,-767.26,0.00037808,7]
[314060318,1707951054607,-594.9,0.00037808,7]
[314060319,1707951054617,-500.0,0.00037808,7]
[314060320,1707951054627,-500.0,0.00037808,7]
[314060321,1707951054638,-519.31,0.00037808,7]
[314060322,1707951054647,-500.0,0.00037808,7]
[314060323,1707951054661,-500.0,0.00037808,7]
[314060324,1707951054670,-1003.85,0.00037808,7]
[314060325,1707951054680,-717.51,0.00037808,7]
[314060326,1707951054691,-500.0,0.00037808,7]
[314060327,1707951054703,-525.8,0.00037808,7]
[314060328,1707951054713,-500.0,0.00037808,7]
[314060329,1707951054723,-1857.9,0.00037808,7]
[314060330,1707951054732,-500.0,0.00037808,7]
[314060331,1707951054742,-609.15,0.00037808,7]
[314060332,1707951054751,-500.0,0.00037808,7]
[314060333,1707951054761,-624.49,0.00037808,7]
[314060334,1707951054770,-983.56,0.00037808,7]
[314060335,1707951054780,-769.09,0.00037808,7]
[314060336,1707951054790,-829.58,0.00037808,7]
[314060337,1707951054800,-275.23498168,0.00037808,7]
[314060338,1707951054810,-500.0,0.00037808,7]
[314060339,1707951054820,-500.0,0.00037808,7]
[314060340,1707951054829,-150.0,0.00037825,2]
[314060341,1707951054839,-1649.6642194,0.00037874,2]
[314060342,1707951054848,-4295.6356673,0.00037874,2]
[314060343,1707951054858,-17243.03801093,0.00037874,2]
[314060344,1707951055016,-2045.6675536,0.00037874,2]
[314060345,1707951055029,-1456.01777597,0.00037874,2]
[314060346,1707951055180,-3827.84854695,0.00037874,2]
[314060347,1707951055194,-10514.58400001,0.00037874,2]
[314060348,1707951055206,-10462.66200007,0.00037874,2]
[314060349,1707951055223,-589.77,0.00036164,7]
[314060350,1707951055233,-460.27694569,0.00037874,2]
[314060351,1707951055246,-9947.49929053,0.00037874,2]
[314060352,1707951055329,-1.561e-05,0.00037874,2]
[314060353,1707951055342,-2767.3,0.00037874,2]
[314060354,1707951055354,-536.42797147,0.00037874,2]
[314060355,1707951055423,-196.49,0.00035616,7]
[314060356,1707951055433,-500.0,0.00035616,7]
[314060357,1707951055442,-564.9576918,0.00036438,7]
[314060358,1707951055460,-24.8123082,0.00036438,7]
[314060359,1707951055474,-589.77,0.00036712,7]
[314060360,1707951055484,-589.77,0.00036986,7]
[314060361,1707951055493,-589.77,0.0003726,7]
[314060362,1707951055502,-589.77,0.00037534,7]